lending/lending_fUSD_20241229
["ID","MTS","AMOUNT","RATE_DAILY","PERIOD"]
[346982201,1735447848409,-3905.20070484,0.00012999,2]
[346982203,1735447848418,-582.60774807,0.00012999,2]
[346982205,1735447848427,-1091.05,0.00012999,2]
[346982207,1735447848436,-1091.05,0.00012999,2]
[346982209,1735447848446,-1091.05,0.00012999,2]
[346982211,1735447848456,-1091.05,0.00012999,2]
[346982213,1735447848465,-1091.05,0.00012999,2]
[346982215,1735447848475,-1091.05,0.00012999,2]
[346982217,1735447848484,-1091.05,0.00012999,2]
[346982219,1735447848493,-1091.05,0.00012999,2]
[346982221,1735447848502,-1091.05,0.00012999,2]
[346982223,1735447848511,-1091.05,0.00012999,2]
[346982225,1735447848521,-1091.05,0.00012999,2]
[346982227,1735447848530,-1091.05,0.00012999,2]
[346982229,1735447848539,-1091.05,0.00012999,2]
[346982231,1735447848548,-1091.05,0.00012999,2]
[346982233,1735447848557,-1091.05,0.00012999,2]
[346982235,1735447848566,-1091.05,0.00012999,2]
[346982237,1735447848575,-596.26034296,0.00012999,2]
[346982299,1735447993692,502.858602,0.00022499,120]
[346982300,1735447996005,2000.0,0.00022499,120]
[346982302,1735448033690,202.089302,0.00022499,120]
[346982307,1735448593242,500.0,0.00022499,120]
[346982308,1735448595803,2061.502555,0.00022499,120]
[346982313,1735448630299,200.0,0.00022499,120]
[346982314,1735448654397,3000.0,0.00024678,120]
[346982353,1735449031714,-430.24377552,9.844e-05,2]
[346982354,1735449031766,-204.36622448,9.844e-05,2]
[346982355,1735449031775,-119.17777552,0.00010137,2]
[346982356,1735449031823,-164.75222448,0.00010137,2]
[346982358,1735449031831,-309.24777552,0.00011375,2]
[346982423,1735449037660,-747.75222448,0.00011375,2]
[346982424,1735449037669,-1000.0,0.00011461,2]
[346982425,1735449037679,-250.0,0.00011466,2]
[346982426,1735449037688,-156.82,0.00011577,2]
[346982427,1735449037697,-1057.0,0.00011974,2]
[346982428,1735449037707,-450.0,0.00012,2]
[346982430,1735449037716,-502.0,0.00012055,2]
[346982432,1735449037725,-155.42,0.00012091,2]
[346982433,1735449037734,-155.42,0.00012098,2]
[346982434,1735449037744,-155.42,0.00012105,2]
[346982435,1735449037753,-634.61,0.00012108,2]
[346982436,1735449037762,-155.42,0.00012111,2]
[346982437,1735449037771,-155.42,0.00012118,2]
[346982438,1735449037780,-155.42,0.00012125,2]
[346982439,1735449037789,-155.42,0.00012132,2]
[346982440,1735449037798,-155.42,0.00012138,2]
[346982442,1735449037807,-155.42,0.00012145,2]
[346982444,1735449037816,-155.42,0.00012152,2]
[346982446,1735449037825,-619.0,0.00012154,2]
[346982448,1735449037835,-436.65,0.000122,2]
[346982449,1735449037844,-153.38,0.00012278,2]
[346982452,1735449037854,-150.0,0.00012278,2]
[346982454,1735449037863,-150.0,0.00012278,2]
[346982455,1735449037872,-411.015,0.0001235,2]
[346982457,1735449037881,-1057.0,0.00012604,2]
[346982460,1735449037890,-151.3,0.00012654,2]
[346982462,1735449037899,-1168.3413,0.00012882,2]
[346982464,1735449037909,-1000.0,0.00012894,2]
[346982466,1735449037918,-4189.11023509,0.00012981,2]
[346982614,1735449039436,-1181.43300001,0.00012981,2]
[346982620,1735449039492,-2631.01595791,0.00012981,2]
[346982633,1735449039602,-268.13583273,0.00012981,2]
[346982640,1735449039659,-313.94567625,0.00012981,2]
[346982642,1735449039670,-1507.22631997,0.00012981,2]
[346982644,1735449039681,-683.6199995,0.00012981,2]
[346982646,1735449039692,-2090.775004,0.00012981,2]
[346982649,1735449039703,-255.912,0.00012981,2]
[346982651,1735449039718,-9096.64373114,0.00012981,2]
[346982654,1735449039729,-5938.90183263,0.00012981,2]
[346982656,1735449039739,-1618.66,0.00012981,2]
[346982657,1735449039748,-1279.2,0.00012981,2]
[346982659,1735449039757,-110.4569621,0.00012981,2]
[346982662,1735449039769,-866.2030379,0.00012981,2]
[346982664,1735449039778,-1903.11,0.00012981,2]
[346982666,1735449039786,-882.73,0.00012981,2]
[346982668,1735449039795,-2561.47,0.00012981,2]
[346982670,1735449039804,-957.33,0.00012981,2]
[346982672,1735449039813,-500.0,0.00012981,2]
[346982674,1735449039822,-1272.94082672,0.00012981,2]
[346982676,1735449039833,-1565.65917328,0.00012981,2]
[346982678,1735449039843,-1501.33,0.00012981,2]
[346982680,1735449039851,-2704.01,0.00012981,2]
[346982682,1735449039860,-3300.9,0.00012981,2]
[346982683,1735449039869,-5.64948824,0.00012981,2]
[346982686,1735449039882,-6368.59051176,0.00012981,2]
[346982688,1735449039891,-500.0,0.00012981,2]
[346982712,1735449039900,-1436.19,0.00012981,2]
[346982714,1735449040110,-639.05972313,0.00012981,2]
[346982717,1735449040122,-620.00027687,0.00012981,2]
[346982718,1735449040131,-1125.19972313,0.00012981,2]
[346982859,1735449042551,-104.48027687,0.00012981,2]
[346982860,1735449042560,-492.57848836,0.00012981,2]
[346982861,1735449042572,-7.42151164,0.00012981,2]
[346982862,1735449042582,-3865.51,0.00012981,2]
[346982863,1735449042591,-1441.8,0.00012981,2]
[346982864,1735449042601,-1500.73848836,0.00012981,2]
[346982865,1735449042703,-500.0,0.00012981,2]
[346982894,1735449045414,-3788.01151164,0.00012981,2]
[346982895,1735449045423,-580.97,0.00012981,2]
[346982896,1735449045433,-4287.20568538,0.00012981,2]
[346982897,1735449045460,-1272.74431462,0.00012981,2]
[346982898,1735449045469,-896.77,0.00012981,2]
[346982899,1735449045478,-182.11715734,0.00012981,2]
[346982900,1735449045568,-2195.78284266,0.00012981,2]
[346982901,1735449045578,-5886.16,0.00012981,2]
[346982902,1735449045587,-2358.8,0.00012981,2]
[346982903,1735449045596,-943.46,0.00012981,2]
[346982904,1735449045606,-1910.96,0.00012981,2]
[346982905,1735449045615,-3997.42,0.00012981,2]
[346982906,1735449045624,-2186.13,0.00012981,2]
[346982907,1735449045634,-1263.15,0.00012981,2]
[346982908,1735449045643,-1196.9,0.00012981,2]
[346982909,1735449045652,-500.0,0.00012981,2]
[346982910,1735449045661,-1198.53,0.00012981,2]
[346982911,1735449045671,-1181.0,0.00012981,2]
[346982912,1735449045680,-1501.48,0.00012981,2]
[346982913,1735449045689,-553.99,0.00012981,2]
[346982914,1735449045699,-500.0,0.00012981,2]
[346982915,1735449045708,-500.0,0.00012981,2]
[346982916,1735449045717,-500.0,0.00012981,2]
[346982917,1735449045727,-500.0,0.00012981,2]
[346982918,1735449045736,-1028.12,0.00012981,2]
[346982919,1735449045746,-500.0,0.00012981,2]
[346982920,1735449045755,-500.0,0.00012981,2]
[346982921,1735449045764,-500.0,0.00012981,2]
[346982922,1735449045774,-500.0,0.00012982,2]
[346982923,1735449045783,-500.0,0.00012982,2]
[346982924,1735449045793,-500.0,0.00012982,2]
[346982926,1735449045803,-500.0,0.00012982,2]
[346982928,1735449045812,-500.0,0.00012982,2]
[346982930,1735449045822,-500.0,0.00012982,2]
[346982931,1735449045832,-500.0,0.00012982,2]
[346982932,1735449045841,-500.0,0.00012982,2]
[346982933,1735449045851,-500.0,0.00012982,2]
[346982934,1735449045860,-500.0,0.00012982,2]
[346982935,1735449045870,-500.0,0.00012982,2]
[346982936,1735449045879,-500.0,0.00012982,2]
[346982937,1735449045888,-500.0,0.00012982,2]
[346982938,1735449045898,-500.0,0.00012982,2]
[346982939,1735449045907,-680.69,0.00012982,2]
[346982940,1735449045916,-500.0,0.00012982,2]
[346982941,1735449045925,-500.0,0.00012982,2]
[346982942,1735449045934,-500.0,0.00012982,2]
[346982943,1735449045943,-500.0,0.00012982,2]
[346982944,1735449045956,-500.0,0.00012982,2]
[346982946,1735449045970,-500.0,0.00012982,2]
[346982948,1735449045979,-500.0,0.00012982,2]
[346982949,1735449045988,-506.95,0.00012982,2]
[346982950,1735449045999,-500.0,0.00012982,2]
[346982951,1735449046008,-500.0,0.00012982,2]
[346982952,1735449046017,-500.0,0.00012982,2]
[346982953,1735449046029,-500.0,0.00012982,2]
[346982954,1735449046039,-500.0,0.00012982,2]
[346982955,1735449046048,-500.0,0.00012982,2]
[346982956,1735449046059,-500.0,0.00012982,2]
[346982957,1735449046069,-500.0,0.00012982,2]
[346982958,1735449046078,-500.0,0.00012982,2]
[346982959,1735449046088,-500.0,0.00012982,2]
[346982960,1735449046097,-500.0,0.00012982,2]
[346982961,1735449046106,-713.49,0.00012982,2]
[346982962,1735449046115,-500.0,0.00012982,2]
[346982963,1735449046125,-847.61,0.00012982,2]
[346982964,1735449046134,-500.0,0.00012982,2]
[346982965,1735449046143,-500.0,0.00012982,2]
[346982966,1735449046153,-500.0,0.00012982,2]
[346982967,1735449046162,-500.0,0.00012982,2]
[346982968,1735449046171,-500.0,0.00012982,2]
[346982969,1735449046180,-500.0,0.00012982,2]
[346982970,1735449046190,-500.0,0.00012982,2]
[346982971,1735449046199,-500.0,0.00012982,2]
[346982972,1735449046208,-416.90834441,0.00012982,2]
[346982973,1735449046218,-670.23,0.00012982,2]
[346982974,1735449046227,-379.70504378,0.00012982,2]
[346982975,1735449046236,-500.0,0.00012982,2]
[346982976,1735449046245,-500.0,0.00012982,2]
[346982977,1735449046254,-500.0,0.00012982,2]
[346982978,1735449046263,-500.0,0.00012982,2]
[346982979,1735449046272,-500.0,0.00012982,2]
[346982980,1735449046282,-500.0,0.00012982,2]
[346982981,1735449046291,-500.0,0.00012982,2]
[346982982,1735449046300,-500.0,0.00012982,2]
[346982983,1735449046310,-805.66,0.00012982,2]
[346982984,1735449046319,-500.0,0.00012982,2]
[346982985,1735449046329,-500.0,0.00012982,2]
[346982986,1735449046338,-500.0,0.00012982,2]
[346982987,1735449046347,-500.0,0.00012982,2]
[346982988,1735449046357,-504.28895741,0.00012982,2]
[346982989,1735449046367,-500.0,0.00012982,2]
[346982990,1735449046377,-165.26860448,0.00012982,2]
[346982991,1735449046386,-500.0,0.00012982,2]
[346982992,1735449046395,-500.0,0.00012982,2]
[346982993,1735449046404,-500.0,0.00012982,2]
[346982994,1735449046414,-540.49,0.00012982,2]
[346982995,1735449046423,-500.0,0.00012982,2]
[346982996,1735449046432,-500.0,0.00012982,2]
[346982997,1735449046441,-500.0,0.00012982,2]
[346982998,1735449046450,-427.40759249,0.00012982,2]
[346982999,1735449046459,-500.0,0.00012982,2]
[346983000,1735449046469,-500.0,0.00012982,2]
[346983001,1735449046478,-500.0,0.00012982,2]
[346983002,1735449046487,-500.0,0.00012982,2]
[346983003,1735449046496,-500.0,0.00012982,2]
[346983004,1735449046505,-500.0,0.00012982,2]
[346983005,1735449046515,-500.0,0.00012982,2]
[346983006,1735449046524,-500.0,0.00012982,2]
[346983007,1735449046725,-802.35,0.00012982,2]
[346983008,1735449046735,-500.0,0.00012982,2]
[346983009,1735449046745,-500.0,0.00012982,2]
[346983010,1735449046754,-500.0,0.00012982,2]
[346983011,1735449046763,-500.0,0.00012982,2]
[346983012,1735449046773,-500.0,0.00012982,2]
[346983013,1735449046782,-500.0,0.00012982,2]
[346983014,1735449046791,-500.0,0.00012982,2]
[346983015,1735449046800,-500.0,0.00012982,2]
[346983016,1735449046809,-500.0,0.00012982,2]
[346983017,1735449046819,-500.0,0.00012982,2]
[346983018,1735449046828,-175.43415115,0.00012982,2]
[346983019,1735449046837,-500.0,0.00012982,2]
[346983020,1735449046846,-500.0,0.00012982,2]
[346983021,1735449046855,-500.0,0.00012982,2]
[346983022,1735449046865,-500.0,0.00012982,2]
[346983023,1735449046874,-500.0,0.00012982,2]
[346983024,1735449046884,-500.0,0.00012982,2]
[346983025,1735449046894,-500.0,0.00012982,2]
[346983026,1735449046902,-500.0,0.00012982,2]
[346983027,1735449046912,-500.0,0.00012982,2]
[346983028,1735449046922,-500.0,0.00012982,2]
[346983029,1735449046932,-500.0,0.00012982,2]
[346983030,1735449046942,-500.0,0.00012982,2]
[346983031,1735449046951,-500.0,0.00012982,2]
[346983032,1735449046965,-630.76275365,0.00012982,2]
[346983033,1735449046975,-500.0,0.00012982,2]
[346983034,1735449046986,-500.0,0.00012982,2]
[346983035,1735449046996,-500.0,0.00012982,2]
[346983036,1735449047005,-500.0,0.00012982,2]
[346983037,1735449047015,-500.0,0.00012982,2]
[346983038,1735449047024,-500.0,0.00012982,2]
[346983039,1735449047034,-500.0,0.00012982,2]
[346983040,1735449047043,-500.0,0.00012982,2]
[346983041,1735449047053,-500.0,0.00012982,2]
[346983042,1735449047064,-500.0,0.00012982,2]
[346983043,1735449047073,-500.0,0.00012982,2]
[346983044,1735449047082,-500.0,0.00012982,2]
[346983045,1735449047092,-500.0,0.00012982,2]
[346983046,1735449047101,-500.0,0.00012982,2]
[346983047,1735449047111,-500.0,0.00012982,2]
[346983048,1735449047122,-500.0,0.00012982,2]
[346983049,1735449047131,-500.0,0.00012982,2]
[346983050,1735449047141,-500.0,0.00012982,2]
[346983051,1735449047150,-500.0,0.00012982,2]
[346983052,1735449047160,-598.27717865,0.00012982,2]
[346983053,1735449047170,-500.0,0.00012982,2]
[346983054,1735449047179,-500.0,0.00012982,2]
[346983055,1735449047188,-500.0,0.00012982,2]
[346983056,1735449047197,-500.0,0.00012982,2]
[346983057,1735449047207,-500.0,0.00012982,2]
[346983058,1735449047215,-500.0,0.00012982,2]
[346983059,1735449047224,-500.0,0.00012982,2]
[346983060,1735449047234,-500.0,0.00012982,2]
[346983061,1735449047243,-500.0,0.00012982,2]
[346983062,1735449047252,-500.0,0.00012982,2]
[346983063,1735449047262,-504.03242987,0.00012982,2]
[346983064,1735449047271,-500.0,0.00012982,2]
[346983065,1735449047280,-581.05297269,0.00012982,2]
[346983066,1735449047290,-500.0,0.00012982,2]
[346983067,1735449047299,-500.0,0.00012982,2]
[346983068,1735449047308,-500.0,0.00012982,2]
[346983069,1735449047317,-937.54,0.00012982,2]
[346983070,1735449047326,-500.0,0.00012982,2]
[346983071,1735449047335,-500.0,0.00012982,2]
[346983072,1735449047344,-500.0,0.00012982,2]
[346983073,1735449047353,-500.0,0.00012982,2]
[346983074,1735449047363,-500.0,0.00012982,2]
[346983075,1735449047374,-500.0,0.00012982,2]
[346983076,1735449047383,-500.0,0.00012982,2]
[346983077,1735449047393,-221.39257632,0.00012982,2]
[346983078,1735449047402,-500.0,0.00012982,2]
[346983079,1735449047411,-500.0,0.00012982,2]
[346983080,1735449047420,-587.57,0.00012982,2]
[346983081,1735449047430,-500.0,0.00012982,2]
[346983082,1735449047439,-500.0,0.00012982,2]
[346983083,1735449047449,-500.0,0.00012982,2]
[346983084,1735449047458,-500.0,0.00012982,2]
[346983085,1735449047467,-500.0,0.00012982,2]
[346983086,1735449047477,-508.77771383,0.00012982,2]
[346983087,1735449047486,-840.96,0.00012982,2]
[346983088,1735449047495,-500.0,0.00012982,2]
[346983089,1735449047504,-500.0,0.00012982,2]
[346983090,1735449047513,-500.0,0.00012982,2]
[346983091,1735449047522,-500.0,0.00012982,2]
[346983092,1735449047531,-500.0,0.00012982,2]
[346983093,1735449047541,-512.844398,0.00012982,2]
[346983094,1735449047550,-500.0,0.00012982,2]
[346983095,1735449047559,-500.0,0.00012982,2]
[346983096,1735449047568,-500.0,0.00012982,2]
[346983097,1735449047578,-500.0,0.00012982,2]
[346983098,1735449047587,-500.0,0.00012982,2]
[346983099,1735449047596,-500.0,0.00012982,2]
[346983100,1735449047605,-500.0,0.00012982,2]
[346983101,1735449047615,-500.0,0.00012982,2]
[346983102,1735449047625,-507.95,0.00012982,2]
[346983103,1735449047634,-500.0,0.00012982,2]
[346983104,1735449047643,-500.0,0.00012982,2]
[346983105,1735449047653,-500.0,0.00012982,2]
[346983106,1735449047663,-503.3971505,0.00012982,2]
[346983107,1735449047672,-500.0,0.00012982,2]
[346983108,1735449047681,-500.0,0.00012982,2]
[346983109,1735449047691,-500.0,0.00012982,2]
[346983110,1735449047700,-500.0,0.00012982,2]
[346983111,1735449047709,-500.0,0.00012982,2]
[346983112,1735449047718,-500.0,0.00012982,2]
[346983113,1735449047728,-849.35,0.00012982,2]
[346983114,1735449047738,-500.0,0.00012982,2]
[346983115,1735449047747,-500.0,0.00012982,2]
[346983116,1735449047756,-500.0,0.00012982,2]
[346983117,1735449047765,-500.0,0.00012982,2]
[346983118,1735449047774,-449.89197482,0.00012982,2]
[346983119,1735449047783,-500.0,0.00012982,2]
[346983120,1735449047793,-639.07676078,0.00012982,2]
[346983121,1735449047802,-500.0,0.00012982,2]
[346983122,1735449047811,-500.0,0.00012982,2]
[346983123,1735449047820,-500.0,0.00012982,2]
[346983124,1735449047830,-500.0,0.00012982,2]
[346983125,1735449047839,-500.0,0.00012982,2]
[346983126,1735449047848,-500.0,0.00012982,2]
[346983127,1735449047858,-500.0,0.00012982,2]
[346983128,1735449047868,-500.0,0.00012982,2]
[346983129,1735449047876,-500.0,0.00012982,2]
[346983130,1735449047886,-500.0,0.00012982,2]
[346983131,1735449047895,-500.0,0.00012982,2]
[346983132,1735449047904,-500.0,0.00012982,2]
[346983133,1735449047913,-500.0,0.00012982,2]
[346983134,1735449047923,-500.0,0.00012982,2]
[346983135,1735449047932,-500.0,0.00012982,2]
[346983136,1735449047942,-500.0,0.00012982,2]
[346983137,1735449047951,-500.0,0.00012982,2]
[346983138,1735449047963,-503.78194089,0.00012982,2]
[346983139,1735449047973,-500.0,0.00012982,2]
[346983140,1735449047982,-500.0,0.00012982,2]
[346983141,1735449047992,-500.0,0.00012982,2]
[346983142,1735449048002,-500.0,0.00012982,2]
[346983143,1735449048011,-500.0,0.00012982,2]
[346983144,1735449048020,-500.0,0.00012982,2]
[346983145,1735449048030,-500.0,0.00012982,2]
[346983146,1735449048039,-500.0,0.00012982,2]
[346983147,1735449048049,-500.0,0.00012982,2]
[346983148,1735449048058,-500.0,0.00012982,2]
[346983149,1735449048068,-500.0,0.00012982,2]
[346983150,1735449048077,-504.07886101,0.00012982,2]
[346983151,1735449048087,-500.0,0.00012982,2]
[346983152,1735449048097,-500.0,0.00012982,2]
[346983153,1735449048106,-585.48,0.00012982,2]
[346983154,1735449048117,-500.0,0.00012982,2]
[346983155,1735449048127,-500.0,0.00012982,2]
[346983156,1735449048137,-500.0,0.00012982,2]
[346983157,1735449048146,-500.0,0.00012982,2]
[346983158,1735449048155,-500.0,0.00012982,2]
[346983159,1735449048165,-502.08638956,0.00012982,2]
[346983160,1735449048174,-515.52851878,0.00012982,2]
[346983161,1735449048184,-500.0,0.00012982,2]
[346983162,1735449048193,-500.0,0.00012982,2]
[346983163,1735449048202,-500.0,0.00012982,2]
[346983164,1735449048211,-507.85,0.00012982,2]
[346983165,1735449048220,-501.75400272,0.00012982,2]
[346983166,1735449048229,-500.0,0.00012982,2]
[346983167,1735449048238,-501.17584467,0.00012982,2]
[346983168,1735449048247,-500.0,0.00012982,2]
[346983169,1735449048256,-500.0,0.00012982,2]
[346983170,1735449048265,-500.0,0.00012982,2]
[346983171,1735449048275,-500.0,0.00012982,2]
[346983172,1735449048284,-500.0,0.00012982,2]
[346983173,1735449048293,-552.97,0.00012982,2]
[346983174,1735449048302,-500.0,0.00012982,2]
[346983175,1735449048312,-500.0,0.00012982,2]
[346983176,1735449048321,-500.0,0.00012982,2]
[346983177,1735449048330,-500.0,0.00012982,2]
[346983178,1735449048339,-500.0,0.00012982,2]
[346983179,1735449048348,-500.0,0.00012982,2]
[346983180,1735449048357,-500.0,0.00012982,2]
[346983181,1735449048368,-500.0,0.00012982,2]
[346983182,1735449048377,-500.0,0.00012982,2]
[346983183,1735449048387,-500.0,0.00012982,2]
[346983184,1735449048396,-500.0,0.00012982,2]
[346983185,1735449048405,-500.0,0.00012982,2]
[346983186,1735449048415,-500.0,0.00012982,2]
[346983187,1735449048425,-533.16777472,0.00012982,2]
[346983188,1735449048434,-500.0,0.00012982,2]
[346983189,1735449048444,-814.28,0.00012982,2]
[346983190,1735449048454,-500.0,0.00012982,2]
[346983191,1735449048463,-500.0,0.00012982,2]
[346983192,1735449048472,-500.0,0.00012982,2]
[346983193,1735449048481,-500.0,0.00012982,2]
[346983194,1735449048491,-500.0,0.00012982,2]
[346983195,1735449048500,-500.0,0.00012982,2]
[346983196,1735449048509,-795.24,0.00012982,2]
[346983197,1735449048518,-500.0,0.00012982,2]
[346983198,1735449048528,-500.0,0.00012982,2]
[346983199,1735449048537,-540.64802188,0.00012982,2]
[346983200,1735449048547,-500.0,0.00012982,2]
[346983201,1735449048556,-500.0,0.00012982,2]
[346983202,1735449048566,-500.0,0.00012982,2]
[346983203,1735449048576,-500.0,0.00012982,2]
[346983204,1735449048585,-500.0,0.00012982,2]
[346983205,1735449048595,-500.0,0.00012982,2]
[346983206,1735449048605,-500.0,0.00012982,2]
[346983207,1735449048615,-500.0,0.00012982,2]
[346983208,1735449048625,-500.0,0.00012982,2]
[346983209,1735449048634,-378.40312056,0.00012982,2]
[346983210,1735449048644,-500.0,0.00012982,2]
[346983211,1735449048653,-500.0,0.00012982,2]
[346983212,1735449048663,-500.0,0.00012982,2]
[346983213,1735449048674,-500.0,0.00012982,2]
[346983214,1735449048684,-500.0,0.00012982,2]
[346983215,1735449048694,-500.0,0.00012982,2]
[346983216,1735449048704,-500.0,0.00012982,2]
[346983217,1735449048713,-500.0,0.00012982,2]
[346983218,1735449048722,-512.69624402,0.00012982,2]
[346983219,1735449048732,-500.0,0.00012982,2]
[346983220,1735449048741,-500.0,0.00012982,2]
[346983221,1735449048751,-782.41,0.00012982,2]
[346983222,1735449048760,-500.0,0.00012982,2]
[346983223,1735449048769,-500.0,0.00012982,2]
[346983224,1735449048779,-500.0,0.00012982,2]
[346983225,1735449048788,-500.0,0.00012982,2]
[346983226,1735449048798,-377.68308404,0.00012982,2]
[346983227,1735449048807,-500.0,0.00012982,2]
[346983228,1735449048816,-500.0,0.00012982,2]
[346983229,1735449048826,-500.0,0.00012982,2]
[346983230,1735449048835,-500.0,0.00012982,2]
[346983231,1735449048844,-500.0,0.00012982,2]
[346983232,1735449048854,-500.0,0.00012982,2]
[346983233,1735449048863,-500.0,0.00012982,2]
[346983234,1735449048873,-500.0,0.00012982,2]
[346983235,1735449048882,-500.0,0.00012982,2]
[346983236,1735449048892,-500.0,0.00012982,2]
[346983237,1735449048902,-500.0,0.00012982,2]
[346983238,1735449048911,-508.098425,0.00012982,2]
[346983239,1735449048921,-500.0,0.00012982,2]
[346983240,1735449048931,-500.0,0.00012982,2]
[346983241,1735449048940,-500.0,0.00012982,2]
[346983242,1735449048950,-500.0,0.00012982,2]
[346983243,1735449048962,-500.0,0.00012982,2]
[346983244,1735449048973,-500.0,0.00012982,2]
[346983245,1735449048982,-562.43,0.00012982,2]
[346983246,1735449048991,-500.0,0.00012982,2]
[346983247,1735449049000,-502.85704505,0.00012982,2]
[346983248,1735449049011,-500.0,0.00012982,2]
[346983249,1735449049021,-500.0,0.00012982,2]
[346983250,1735449049030,-468.64732424,0.00012982,2]
[346983251,1735449049041,-500.0,0.00012982,2]
[346983252,1735449049051,-755.35,0.00012982,2]
[346983253,1735449049061,-500.0,0.00012982,2]
[346983254,1735449049071,-500.0,0.00012982,2]
[346983255,1735449049080,-500.0,0.00012982,2]
[346983256,1735449049090,-500.0,0.00012982,2]
[346983257,1735449049099,-500.0,0.00012982,2]
[346983258,1735449049109,-500.0,0.00012982,2]
[346983259,1735449049119,-500.0,0.00012982,2]
[346983260,1735449049128,-500.0,0.00012982,2]
[346983261,1735449049138,-500.0,0.00012982,2]
[346983262,1735449049147,-500.0,0.00012982,2]
[346983263,1735449049157,-500.0,0.00012982,2]
[346983264,1735449049166,-500.0,0.00012982,2]
[346983265,1735449049175,-604.09,0.00012982,2]
[346983266,1735449049185,-500.0,0.00012982,2]
[346983267,1735449049194,-500.0,0.00012982,2]
[346983268,1735449049204,-500.0,0.00012982,2]
[346983269,1735449049213,-500.0,0.00012982,2]
[346983270,1735449049222,-500.0,0.00012982,2]
[346983271,1735449049231,-500.0,0.00012982,2]
[346983272,1735449049241,-249.70594051,0.00012982,2]
[346983273,1735449049251,-500.0,0.00012982,2]
[346983274,1735449049260,-500.0,0.00012982,2]
[346983275,1735449049270,-500.0,0.00012982,2]
[346983276,1735449049279,-500.0,0.00012982,2]
[346983277,1735449049289,-500.0,0.00012982,2]
[346983278,1735449049299,-500.0,0.00012982,2]
[346983279,1735449049308,-500.0,0.00012982,2]
[346983280,1735449049318,-768.81,0.00012982,2]
[346983281,1735449049329,-500.0,0.00012982,2]
[346983282,1735449049338,-500.0,0.00012982,2]
[346983283,1735449049348,-526.46866555,0.00012982,2]
[346983284,1735449049357,-500.0,0.00012982,2]
[346983285,1735449049367,-500.0,0.00012982,2]
[346983286,1735449049377,-500.0,0.00012982,2]
[346983287,1735449049387,-500.0,0.00012982,2]
[346983288,1735449049397,-509.92807036,0.00012982,2]
[346983289,1735449049406,-500.0,0.00012982,2]
[346983290,1735449049416,-543.88682228,0.00012982,2]
[346983291,1735449049425,-500.0,0.00012982,2]
[346983292,1735449049434,-500.0,0.00012982,2]
[346983293,1735449049444,-500.0,0.00012982,2]
[346983294,1735449049453,-500.0,0.00012982,2]
[346983295,1735449049463,-500.0,0.00012982,2]
[346983296,1735449049473,-500.0,0.00012982,2]
[346983297,1735449049482,-500.0,0.00012982,2]
[346983298,1735449049491,-401.53313432,0.00012982,2]
[346983299,1735449049500,-500.0,0.00012982,2]
[346983300,1735449049509,-500.0,0.00012982,2]